bitfinex/quotes_BTCUSD_20241222
["timestamp","ask_amount","ask_price","bid_price","bid_amount"]
[1734883345601,0.16945699,95279.0,95272.0,0.02064405]
[1734883345925,0.16945699,95279.0,95278.0,0.02132555]
[1734883346128,0.16945699,95279.0,95278.0,0.12263395]
[1734883346332,0.16945699,95279.0,95278.0,0.11663395]
[1734883346538,0.01945699,95279.0,95278.0,0.11663395]
[1734883346745,0.16945699,95284.0,95278.0,0.13036175]
[1734883346892,0.15,95282.0,95279.0,0.1013084]
[1734883347506,0.16945699,95282.0,95279.0,0.1013084]
[1734883347693,0.359907,95280.0,95279.0,0.1013084]
[1734883348092,0.16945699,95280.0,95279.0,0.1013084]
[1734883348295,0.16945699,95280.0,95279.0,0.11640898]
[1734883348693,0.15,95280.0,95279.0,0.11640898]
[1734883348941,0.16945699,95282.0,95279.0,0.11640898]
[1734883349153,0.01945699,95282.0,95279.0,0.11640898]
[1734883349522,0.01945699,95280.0,95279.0,0.11640898]
[1734883350466,0.44306255,95279.0,95278.0,0.01532555]
[1734883350759,0.359929,95270.0,95269.0,8.57e-05]
[1734883351156,0.15,95269.0,95268.0,0.00278254]
[1734883352304,0.16945699,95269.0,95268.0,0.00278254]
[1734883352924,0.01945699,95269.0,95268.0,0.00278254]
[1734883355811,0.25392263,95269.0,95268.0,0.00278254]
[1734883356048,0.25261054,95269.0,95268.0,0.00278254]
[1734883356890,0.29371411,95269.0,95268.0,0.00278254]
[1734883358191,0.37151411,95269.0,95268.0,0.00278254]
[1734883358824,0.37151411,95269.0,95268.0,0.00286824]
[1734883360520,0.29371411,95269.0,95268.0,0.00286824]
[1734883361121,0.419868,95268.0,95262.0,0.01809633]
[1734883361382,0.15131216,95267.0,95262.0,0.01809633]
[1734883361595,0.359945,95263.0,95262.0,0.01809633]
[1734883362021,0.37940199,95263.0,95262.0,0.01809633]
[1734883362789,0.37940199,95263.0,95262.0,0.02009633]
[1734883362990,0.01945699,95263.0,95262.0,0.12140473]
[1734883363191,0.20325712,95279.0,95262.0,0.236441]
[1734883363192,0.04110357,95279.0,95262.0,0.236441]
[1734883363395,0.04110357,95279.0,95263.0,0.1013084]
[1734883363595,0.04110357,95279.0,95265.0,0.20994]
[1734883363781,0.04110357,95279.0,95268.0,0.209933]
[1734883363997,0.04110357,95279.0,95269.0,0.1669398]
[1734883365661,0.15,95281.0,95269.0,0.1669398]
[1734883365662,0.0001714,95288.0,95269.0,0.1669398]
[1734883365841,0.0001714,95288.0,95275.0,0.209917]
[1734883366074,0.0001714,95288.0,95276.0,0.1013084]
[1734883366393,0.0001714,95288.0,95276.0,0.0953084]
[1734883366716,0.0001714,95288.0,95277.0,0.05151504]
[1734883366848,0.0001714,95288.0,95278.0,0.1013084]
[1734883367047,0.209892,95287.0,95278.0,0.12217821]
[1734883367251,0.15,95286.0,95278.0,0.12217821]
[1734883367659,0.15,95282.0,95278.0,0.12217821]
[1734883367857,0.15,95282.0,95279.0,0.01231782]
[1734883368131,0.15,95282.0,95280.0,0.1013084]
[1734883370000,0.15,95286.0,95280.0,0.1013084]
[1734883370398,0.0001714,95288.0,95280.0,0.1013084]
[1734883370621,0.0001714,95288.0,95281.0,0.0819]
[1734883370828,0.0001714,95288.0,95285.0,0.209895]
[1734883371033,0.0001714,95288.0,95287.0,0.3112004]
[1734883371201,0.0001714,95288.0,95287.0,0.3052004]
[1734883372047,0.0001714,95288.0,95287.0,0.0953084]
[1734883375027,0.0001714,95288.0,95287.0,0.1772084]
[1734883375226,0.0001714,95288.0,95287.0,0.26176754]
[1734883376253,0.0001714,95288.0,95287.0,0.25576754]
[1734883376690,0.01967784,95288.0,95287.0,0.25576754]
[1734883376928,0.209837,95312.0,95288.0,0.20989]
[1734883377137,0.00016314,95302.0,95293.0,0.209877]
[1734883377353,0.00016314,95302.0,95294.0,0.1013084]
[1734883377734,0.00016314,95302.0,95295.0,0.209874]
[1734883377906,0.00016314,95302.0,95296.0,0.1013084]
[1734883378311,0.00016314,95302.0,95297.0,0.5210464]
[1734883378449,0.00016314,95302.0,95299.0,0.209865]
[1734883378660,0.09339094,95321.0,95302.0,0.0819]
[1734883378901,0.09339094,95321.0,95309.0,0.1013084]
[1734883379054,0.09339094,95321.0,95310.0,0.41968]
[1734883379262,0.2099664,95332.0,95312.0,0.209837]
[1734883379469,0.2099664,95332.0,95313.0,0.15340684]
[1734883379669,0.41992463,95332.0,95314.0,0.209832]
[1734883379867,0.41992463,95332.0,95315.0,0.1013084]
[1734883380161,0.15,95329.0,95320.0,0.02153521]
[1734883380330,0.00033463,95332.0,95322.0,0.209815]
[1734883380573,0.00033463,95332.0,95323.0,0.15555706]
[1734883380794,0.00033463,95332.0,95324.0,0.20981]
[1734883380995,0.00033463,95332.0,95325.0,0.1013084]
[1734883381169,0.00033463,95332.0,95326.0,0.209806]
[1734883381326,0.15,95335.0,95327.0,0.1013084]
[1734883381526,0.0001714,95342.0,95326.0,0.209806]
[1734883381527,0.0001714,95342.0,95338.0,0.05889643]
[1734883381715,0.0320223,95352.0,95351.0,0.209751]
[1734883382083,0.11738292,95354.0,95352.0,0.0822]
[1734883382224,0.22391951,95359.0,95355.0,0.20974]
[1734883382426,0.17442396,95359.0,95358.0,0.31020483]
[1734883382655,0.06948381,95359.0,95358.0,0.32705128]
[1734883382855,0.28062586,95367.0,95358.0,0.32705128]
[1734883382856,0.20378338,95367.0,95366.0,0.26861443]
[1734883383059,0.19137098,95367.0,95366.0,0.36992283]
[1734883383304,0.12880749,95367.0,95366.0,0.38676928]
[1734883383495,0.00054399,95367.0,95366.0,0.38676928]
[1734883384256,0.00054399,95367.0,95366.0,0.36992283]
[1734883384497,0.00054399,95367.0,95366.0,0.38676928]
[1734883385069,0.00054399,95367.0,95366.0,0.39576928]
[1734883385261,0.00054399,95367.0,95366.0,0.38676928]
[1734883385809,0.00054399,95367.0,95366.0,0.39076928]
[1734883386014,1e-08,95384.0,95366.0,0.39076928]
[1734883386215,60.0,95789.0,95366.0,0.39076928]
[1734883386216,0.0001712,95416.0,95389.0,0.01684645]
[1734883386389,0.209589,95425.0,95383.0,0.1493084]
[1734883386390,0.29274255,95425.0,95405.0,0.209631]
[1734883386591,0.00016325,95416.0,95412.0,0.3109234]
[1734883386962,0.00016325,95416.0,95412.0,0.1013084]
[1734883387795,0.00016325,95416.0,95412.0,0.1033084]
[1734883388201,0.00016325,95416.0,95412.0,0.1013084]
[1734883388423,0.00016325,95416.0,95412.0,0.1093084]
[1734883388993,0.00016325,95416.0,95412.0,0.1013084]
[1734883390265,0.00016325,95416.0,95412.0,0.1063084]
[1734883390651,0.00016325,95416.0,95412.0,0.3109244]
[1734883390851,0.00016325,95416.0,95412.0,0.3189244]
[1734883391091,0.00016325,95416.0,95415.0,0.1013084]
[1734883391281,0.00016325,95416.0,95415.0,0.0953084]
[1734883392517,0.00016325,95416.0,95415.0,0.11215485]
[1734883393435,0.00016325,95416.0,95415.0,0.0953084]
[1734883393653,0.04110357,95416.0,95415.0,0.0953084]
[1734883393860,0.48386512,95416.0,95415.0,0.009]
[1734883394057,0.08315355,95412.0,95376.0,0.01684645]
[1734883394265,0.08315355,95412.0,95394.0,0.1013084]
[1734883394266,0.209628,95407.0,95394.0,0.1013084]
[1734883394502,0.15,95406.0,95394.0,0.1013084]
[1734883395282,0.209643,95400.0,95394.0,0.1013084]
[1734883395487,0.15,95404.0,95394.0,0.1013084]
[1734883395718,0.209647,95399.0,95394.0,0.1013084]
[1734883396085,0.209647,95399.0,95394.0,0.0953084]
[1734883396899,0.15,95396.0,95394.0,0.0983084]
[1734883397094,0.15,95396.0,95394.0,0.0953084]
[1734883397520,0.25075057,95399.0,95394.0,0.1013084]
[1734883397521,0.15,95395.0,95394.0,0.1013084]
[1734883397720,0.15,95395.0,95394.0,0.0953084]
[1734883398067,0.359654,95395.0,95394.0,0.1033084]
[1734883398574,0.01933474,95396.0,95394.0,0.0953084]
[1734883398810,0.01933474,95396.0,95394.0,0.0963084]
[1734883399225,0.15,95401.0,95394.0,0.0963084]
[1734883399728,0.1501712,95399.0,95394.0,0.0963084]
[1734883400140,0.1501712,95399.0,95394.0,0.0953084]
[1734883400367,0.1501712,95399.0,95394.0,0.1033084]
[1734883400757,0.0001712,95399.0,95394.0,0.1033084]
[1734883401160,0.0001712,95399.0,95394.0,0.0893084]
[1734883401366,0.0001712,95399.0,95396.0,0.3109604]
[1734883401568,0.0001712,95399.0,95398.0,0.1013084]
[1734883402784,0.0001712,95399.0,95398.0,0.11815485]
[1734883403193,0.0001712,95399.0,95398.0,0.17705128]
[1734883404375,0.002,95416.0,95410.0,0.01684645]
[1734883404569,0.002,95416.0,95415.0,0.1013084]
[1734883405996,0.03844597,95436.0,95426.0,0.209584]
[1734883406215,0.03844597,95436.0,95427.0,0.1013084]
[1734883406401,0.03844597,95436.0,95427.0,0.0953084]
[1734883406602,0.16087976,95438.0,95428.0,0.209582]
[1734883406804,0.03844597,95436.0,95431.0,0.1013084]
[1734883407071,0.03844597,95436.0,95432.0,0.209573]
[1734883407272,0.03844597,95436.0,95433.0,0.1013084]
[1734883409018,0.03844597,95436.0,95433.0,0.1063084]
[1734883409311,0.15,95434.0,95433.0,0.1063084]
[1734883410187,0.23315355,95434.0,95433.0,0.1063084]
[1734883410602,0.27159952,95434.0,95433.0,0.1063084]
[1734883410743,0.27159952,95434.0,95433.0,0.1013084]
[1734883411140,0.27159952,95434.0,95414.0,0.02095632]
[1734883411367,0.03844597,95430.0,95415.0,0.1013084]
[1734883411992,0.15,95424.0,95415.0,0.1013084]
[1734883412349,0.01953248,95423.0,95415.0,0.1013084]
[1734883412736,0.01953248,95422.0,95415.0,0.1033084]
[1734883413082,0.01953248,95422.0,95416.0,0.1013084]
[1734883413251,0.18844597,95436.0,95421.0,0.3109054]
[1734883413449,0.15,95441.0,95430.0,0.1013084]
[1734883413659,0.08315355,95451.0,95431.0,0.1013084]
[1734883413660,0.0001714,95438.0,95431.0,0.1013084]
[1734883414081,0.0001714,95438.0,95431.0,0.3108834]
[1734883414522,0.1501714,95438.0,95431.0,0.1013084]
[1734883415953,0.0001714,95438.0,95431.0,0.1013084]
[1734883416133,0.0001714,95438.0,95431.0,0.1043084]
[1734883416330,0.0001714,95438.0,95431.0,0.0953084]
[1734883417898,0.0001714,95438.0,95431.0,0.1043084]
[1734883418245,0.1501714,95438.0,95431.0,0.1043084]
[1734883418441,0.15013283,95438.0,95431.0,0.1043084]
[1734883419384,0.00013283,95438.0,95431.0,0.1043084]
[1734883419556,0.00013283,95438.0,95431.0,0.0953084]
[1734883421164,0.00013283,95438.0,95431.0,0.0893084]
[1734883421733,0.00013283,95438.0,95431.0,0.0973084]
[1734883422072,0.209562,95437.0,95431.0,0.0973084]
[1734883422468,0.00013283,95438.0,95431.0,0.0973084]
[1734883423030,0.00013283,95438.0,95431.0,0.0893084]
[1734883423229,0.00013283,95438.0,95431.0,0.0983084]
[1734883423660,0.00013283,95438.0,95431.0,0.0893084]
[1734883424217,0.00013283,95438.0,95436.0,0.1013084]
[1734883424492,0.00013283,95438.0,95436.0,0.3108714]
[1734883425232,0.000171,95437.0,95436.0,0.3108714]
[1734883425924,0.000171,95437.0,95436.0,0.3188714]
[1734883426149,0.000171,95437.0,95436.0,0.3048714]
[1734883426550,0.000171,95437.0,95436.0,0.3138714]
[1734883428036,0.209525,95454.0,95436.0,0.3138714]
[1734883428037,0.03844597,95468.0,95437.0,0.01684645]
[1734883428212,0.209468,95480.0,95462.0,0.3108154]
[1734883428387,0.00071509,95463.0,95462.0,0.3108154]
[1734883429250,0.00071509,95463.0,95462.0,0.1013084]
[1734883429801,0.00071509,95463.0,95462.0,0.1103084]
[1734883430818,0.00071509,95463.0,95462.0,0.13147872]
[1734883431172,0.00071509,95463.0,95462.0,0.12547872]
[1734883431393,0.00071509,95463.0,95462.0,0.1043084]
[1734883431588,0.23081509,95463.0,95462.0,0.1043084]
[1734883431788,0.35241461,95463.0,95462.0,0.009]
[1734883431989,0.26926106,95463.0,95462.0,0.1103084]
[1734883432726,0.26926106,95463.0,95462.0,0.1013084]
[1734883433365,0.26926106,95463.0,95462.0,0.1093084]
[1734883434780,0.26926106,95463.0,95462.0,0.1013084]
[1734883434981,0.26926106,95463.0,95462.0,0.1053084]
[1734883435388,0.26926106,95463.0,95462.0,0.1013084]
[1734883436049,0.18916106,95463.0,95462.0,0.1023084]
[1734883436251,0.18916106,95463.0,95462.0,0.0963084]
[1734883438591,0.18916106,95463.0,95462.0,0.001]
[1734883438592,0.27362401,95463.0,95462.0,0.001]
[1734883438797,0.27231461,95463.0,95462.0,0.001]
[1734883439903,0.27231461,95463.0,95462.0,0.002]
[1734883440117,0.209551,95442.0,95436.0,0.02138272]
[1734883440263,0.209551,95442.0,95437.0,0.1013084]
[1734883440753,0.419103,95442.0,95437.0,0.1013084]
[1734883441154,0.209551,95442.0,95437.0,0.1013084]
[1734883441274,0.419088,95446.0,95437.0,0.1013084]
[1734883441479,0.03844597,95453.0,95437.0,0.1013084]
[1734883441740,0.18844597,95455.0,95445.0,0.1013084]
[1734883441943,0.15,95453.0,95445.0,0.0953084]
[1734883443311,0.15,95451.0,95445.0,0.0953084]
[1734883443514,0.15,95451.0,95445.0,0.1023084]
[1734883443700,0.00071509,95463.0,95450.0,0.3108414]
[1734883443901,0.00071509,95463.0,95462.0,0.1013084]
[1734883446260,0.00071509,95463.0,95462.0,0.0953084]
[1734883447234,0.00071509,95463.0,95462.0,0.0983084]
[1734883447445,0.02030635,95463.0,95462.0,0.0953084]
[1734883447823,0.02030635,95463.0,95462.0,0.0983084]
[1734883448053,0.02030635,95463.0,95462.0,0.0953084]
[1734883449533,0.02030635,95463.0,95462.0,0.0983084]
[1734883451149,0.02030635,95463.0,95462.0,0.0923084]
[1734883454251,0.02030635,95463.0,95462.0,0.3018154]
[1734883454452,0.02030635,95463.0,95462.0,0.0923084]
[1734883456227,0.02030635,95463.0,95462.0,0.0863084]
[1734883456858,0.02030635,95463.0,95462.0,0.2958154]
[1734883457687,0.02030635,95463.0,95462.0,0.0863084]
[1734883459455,0.02030635,95463.0,95462.0,0.2958154]
[1734883459879,0.02030635,95463.0,95462.0,0.0863084]
[1734883460083,0.02030635,95463.0,95462.0,0.2958154]
[1734883460289,0.02030635,95463.0,95462.0,0.0863084]
[1734883460490,0.02030635,95463.0,95462.0,0.3757154]
[1734883460910,0.03844597,95482.0,95462.0,0.3757154]
[1734883460911,0.03844597,95487.0,95477.0,0.209473]
[1734883461097,0.15,95491.0,95481.0,0.209465]
[1734883461272,0.15,95491.0,95482.0,0.0953084]
[1734883461477,0.15,95489.0,95482.0,0.0953084]
[1734883461672,0.15,95491.0,95482.0,0.0953084]
[1734883462237,0.15,95487.0,95482.0,0.0953084]
[1734883462443,0.18844597,95487.0,95482.0,0.0953084]
[1734883463399,0.359461,95483.0,95482.0,0.0953084]
[1734883463807,0.15,95483.0,95482.0,0.0963084]
[1734883464282,0.15,95483.0,95482.0,0.0953084]
[1734883464749,0.15,95484.0,95482.0,0.0953084]
[1734883464925,0.359461,95483.0,95482.0,0.0953084]
[1734883465732,0.15,95483.0,95482.0,0.0953084]
[1734883465928,0.15,95484.0,95482.0,0.0953084]
[1734883466142,0.359461,95483.0,95482.0,0.0983084]
[1734883466587,0.47960697,95483.0,95482.0,0.0983084]
[1734883466809,0.60966052,95483.0,95482.0,0.009]
[1734883467011,0.2095,95465.0,95462.0,0.000171]
[1734883467157,0.2095,95465.0,95463.0,0.1013084]
[1734883467397,0.209494,95469.0,95463.0,0.1013084]
[1734883467596,0.03844597,95478.0,95463.0,0.1013084]
[1734883467597,0.209488,95471.0,95463.0,0.1013084]
[1734883468397,0.209461,95484.0,95470.0,0.1013084]
[1734883468606,0.15,95490.0,95475.0,0.3107864]
[1734883468805,0.15,95486.0,95475.0,0.3107864]
[1734883469319,0.15,95486.0,95479.0,0.1013084]
[1734883469717,0.15,95486.0,95479.0,0.12181034]
[1734883469921,0.15,95489.0,95479.0,0.1013084]
[1734883470118,0.209459,95484.0,95479.0,0.1013084]
[1734883470582,0.03844597,95490.0,95479.0,0.1013084]
[1734883470719,0.209467,95480.0,95479.0,0.1013084]
[1734883470921,0.359467,95480.0,95479.0,0.1093084]
[1734883471161,0.39791297,95480.0,95479.0,0.0953084]
[1734883471354,0.03844597,95478.0,95462.0,0.09375211]
[1734883471679,0.209491,95470.0,95464.0,0.02070331]
[1734883471896,0.209491,95470.0,95465.0,0.1013084]
[1734883472837,0.209484,95473.0,95465.0,0.1013084]
[1734883473003,0.209493,95469.0,95465.0,0.1013084]
[1734883473562,0.01960736,95468.0,95465.0,0.1013084]
[1734883473933,0.01960736,95467.0,95465.0,0.1013084]
[1734883474378,0.01960736,95467.0,95465.0,0.1103084]
[1734883474583,0.01960736,95466.0,95465.0,0.1013084]
[1734883474895,0.01960736,95466.0,95465.0,0.1103084]
[1734883475100,0.01960736,95466.0,95465.0,0.1013084]
[1734883475501,0.01960736,95466.0,95465.0,0.1103084]
[1734883476328,0.01960736,95466.0,95465.0,0.1043084]
[1734883476777,0.01960736,95466.0,95465.0,0.0954794]
[1734883477224,0.01960736,95466.0,95465.0,0.1044794]
[1734883479963,0.01960736,95466.0,95465.0,0.0954794]
[1734883480355,0.01960736,95466.0,95465.0,0.1044794]
[1734883480514,0.01960736,95466.0,95465.0,0.0954794]
[1734883481043,0.01960736,95466.0,95465.0,0.1044794]
[1734883481338,0.01960736,95466.0,95465.0,0.0984794]
[1734883483126,0.01960736,95466.0,95465.0,0.0894794]
[1734883483327,0.01960736,95466.0,95465.0,0.0984794]
[1734883484733,0.01960736,95466.0,95465.0,0.0894794]
[1734883484933,0.01960736,95466.0,95465.0,0.0984794]
[1734883486216,0.01960736,95466.0,95465.0,0.0834794]
[1734883486367,0.01960736,95466.0,95465.0,0.0924794]
[1734883486788,0.01960736,95466.0,95465.0,0.0834794]
[1734883487203,0.01960736,95466.0,95465.0,0.0924794]
[1734883487409,0.01960736,95466.0,95465.0,0.0834794]
[1734883487809,0.01960736,95466.0,95465.0,0.0924794]
[1734883489170,0.01960736,95466.0,95465.0,0.0834794]
[1734883489616,0.01960736,95466.0,95465.0,0.0924794]
[1734883489833,0.01960736,95466.0,95465.0,0.0834794]
[1734883490288,0.01960736,95466.0,95465.0,0.0924794]
[1734883491091,0.01960736,95466.0,95465.0,0.0834794]
[1734883491256,0.01960736,95466.0,95465.0,0.0774794]
[1734883492665,0.01960736,95466.0,95465.0,0.0864794]
[1734883492878,0.01960736,95466.0,95465.0,0.18006051]
[1734883493082,0.02010736,95466.0,95465.0,0.18006051]
[1734883494314,0.02010736,95466.0,95465.0,0.0864794]
[1734883496320,0.1913878,95466.0,95465.0,0.1104794]
[1734883497446,0.1913878,95466.0,95465.0,0.1014794]
[1734883497695,0.10823425,95466.0,95465.0,0.1014794]
[1734883497998,0.1913878,95466.0,95465.0,0.1104794]
[1734883498203,0.10823425,95466.0,95465.0,0.1104794]
[1734883498492,0.1109878,95466.0,95465.0,0.1104794]
[1734883499939,0.1109878,95466.0,95465.0,0.1014794]
[1734883500144,0.01710736,95466.0,95465.0,0.1014794]
[1734883500344,0.01710736,95466.0,95465.0,0.1064794]
[1734883500802,0.01068491,95466.0,95465.0,0.1064794]
[1734883501307,0.01068491,95466.0,95465.0,0.1014794]
[1734883501845,0.01068491,95466.0,95465.0,0.0954794]
[1734883502755,0.17333846,95466.0,95465.0,0.006]
[1734883502959,0.419,95465.0,95462.0,0.000171]
[1734883503151,0.419,95465.0,95463.0,0.1013084]
[1734883504138,0.03057406,95464.0,95463.0,0.1013084]
[1734883504691,0.03057406,95464.0,95463.0,0.1103084]
[1734883504889,0.11372761,95464.0,95463.0,0.1103084]
[1734883505729,0.115037,95464.0,95463.0,0.009]
[1734883505903,0.45328297,95464.0,95463.0,0.009]
[1734883506101,0.58360452,95463.0,95462.0,0.000171]
[1734883506304,0.58360452,95463.0,95450.0,0.09358111]
[1734883506305,0.29268455,95451.0,95450.0,0.09358111]
[1734883506504,0.52218455,95451.0,95450.0,0.08758111]
[1734883506707,0.60793052,95451.0,95450.0,0.08758111]
[1734883506910,0.63093052,95451.0,95450.0,0.08758111]
[1734883507157,0.63093052,95451.0,95418.0,0.02135707]
[1734883507158,0.35956,95438.0,95429.0,0.08758111]
[1734883507343,0.44271355,95438.0,95429.0,0.08758111]
[1734883507498,0.56065952,95438.0,95429.0,0.08758111]
[1734883507898,0.63853358,95438.0,95429.0,0.08758111]
[1734883508465,0.6491641,95438.0,95429.0,0.08758111]
[1734883508827,0.03844597,95432.0,95429.0,0.08758111]
[1734883509062,0.03844597,95432.0,95386.0,0.0768]
[1734883509063,0.37540952,95432.0,95393.0,0.1413714]
[1734883509265,0.37409952,95432.0,95393.0,0.1413714]
[1734883509466,0.40111265,95432.0,95393.0,0.1413714]
[1734883509671,0.31265355,95432.0,95395.0,0.06155403]
[1734883509893,0.35109952,95432.0,95395.0,0.06155403]
[1734883510235,0.35209952,95432.0,95405.0,0.209631]
[1734883510436,0.35209952,95432.0,95400.0,0.209642]
[1734883510437,0.35109952,95432.0,95400.0,0.209642]
[1734883510647,0.35109952,95432.0,95408.0,0.02097108]
[1734883510648,0.35209952,95432.0,95408.0,0.02097108]
[1734883510856,0.23415355,95432.0,95431.0,0.1013939]
[1734883511024,0.23315355,95432.0,95431.0,0.1013939]
[1734883511233,0.23415355,95432.0,95431.0,0.0953939]
[1734883511532,0.08415355,95432.0,95431.0,0.0953939]
[1734883512837,0.08315355,95432.0,95431.0,0.0953939]
[1734883513050,0.16899984,95432.0,95431.0,0.0953939]
[1734883513465,0.16999984,95432.0,95431.0,0.0953939]
[1734883513791,0.15,95432.0,95431.0,0.0953939]
[1734883514131,0.01899984,95436.0,95431.0,0.1003939]
[1734883514332,0.01899984,95436.0,95431.0,0.0953939]
[1734883515326,0.01899984,95435.0,95431.0,0.0953939]
[1734883515515,0.01899984,95435.0,95432.0,0.209573]
[1734883515744,0.01899984,95440.0,95436.0,0.0458]
[1734883515925,0.01899984,95440.0,95439.0,0.1013084]
[1734883516325,0.01899984,95450.0,95439.0,0.0953084]
[1734883516566,0.01899984,95450.0,95448.0,0.209537]
[1734883516747,0.00011953,95451.0,95449.0,0.1013084]
[1734883516881,0.00011953,95451.0,95450.0,0.209533]
[1734883517093,0.00011953,95451.0,95450.0,0.3108414]
[1734883518976,0.00011953,95451.0,95450.0,0.1013084]
[1734883519385,0.00011953,95451.0,95450.0,0.1093084]
[1734883519894,0.08327308,95451.0,95450.0,0.1093084]
[1734883520243,0.10227292,95451.0,95450.0,0.1093084]
[1734883520718,0.11282282,95451.0,95450.0,0.1093084]
[1734883521055,0.11282282,95451.0,95450.0,0.008]
[1734883521256,0.11282282,95451.0,95450.0,0.002]
[1734883522102,0.26282282,95451.0,95450.0,0.002]
[1734883522308,0.30126879,95451.0,95450.0,0.002]
[1734883522854,0.26282282,95451.0,95450.0,0.002]
[1734883524148,0.26282282,95451.0,95432.0,0.02099056]
[1734883524149,0.359533,95450.0,95432.0,0.02099056]
[1734883524351,0.359533,95450.0,95433.0,0.1013084]
[1734883524598,0.359533,95450.0,95434.0,0.209568]
[1734883524778,0.01911937,95451.0,95436.0,0.1013084]
[1734883524979,0.01899984,95449.0,95439.0,0.209556]
[1734883525178,0.01899984,95449.0,95441.0,0.209553]
[1734883525491,0.01899984,95449.0,95442.0,0.1013084]
[1734883525643,0.01899984,95450.0,95443.0,0.209549]
[1734883525852,0.01899984,95448.0,95444.0,0.1013084]
[1734883526196,0.01899984,95448.0,95445.0,0.203544]
[1734883526325,0.01899984,95450.0,95446.0,0.1013084]
[1734883526527,0.01899984,95450.0,95447.0,0.02128565]
[1734883526730,0.01999984,95450.0,95449.0,0.209535]
[1734883526956,0.00011953,95451.0,95449.0,0.209535]
[1734883526957,0.00011953,95451.0,95449.0,0.3108434]
[1734883527162,0.00011953,95451.0,95450.0,0.1013084]
[1734883527335,0.00011953,95451.0,95450.0,0.1243084]
[1734883527740,0.00011953,95451.0,95450.0,0.1013084]
[1734883529022,0.00029053,95451.0,95450.0,0.1013084]
[1734883529196,0.01861893,95451.0,95450.0,0.1013084]
[1734883529538,0.01811344,95451.0,95450.0,0.1013084]
[1734883529694,0.01811344,95451.0,95450.0,0.1093084]
[1734883529895,0.01811344,95451.0,95450.0,0.1013084]
[1734883530334,0.01811344,95451.0,95450.0,0.1093084]
[1734883531219,0.01811344,95451.0,95450.0,0.3128414]
[1734883531629,0.000671,95466.0,95450.0,0.3128414]
[1734883531849,0.000671,95466.0,95450.0,0.52291829]
[1734883532047,0.2095,95465.0,95450.0,0.52291829]
[1734883532248,0.08315355,95463.0,95450.0,0.52291829]
[1734883532651,0.08315355,95463.0,95451.0,0.209531]
[1734883532882,0.08315355,95463.0,95452.0,0.1013084]
[1734883534000,0.08315355,95463.0,95453.0,0.209527]
[1734883534191,0.08315355,95463.0,95454.0,0.1013084]
[1734883535151,0.29266055,95463.0,95454.0,0.1013084]
[1734883536179,0.29266055,95463.0,95454.0,0.0953084]
[1734883536377,0.16515355,95457.0,95454.0,0.0953084]
[1734883536601,0.20952,95456.0,95454.0,0.0993084]
[1734883537034,0.20952,95456.0,95454.0,0.0953084]
[1734883537436,0.20952,95456.0,95454.0,0.0993084]
[1734883537667,0.20952,95456.0,95454.0,0.0953084]
[1734883538083,0.20952,95456.0,95454.0,0.0983084]
[1734883539326,0.20952,95456.0,95454.0,0.0953084]
[1734883539526,0.08315355,95463.0,95454.0,0.0983084]
[1734883539750,0.29265955,95463.0,95454.0,0.0983084]
[1734883540099,0.29265955,95463.0,95454.0,0.0953084]
[1734883540292,0.29265955,95463.0,95454.0,0.0983084]
[1734883540430,0.16093894,95466.0,95455.0,0.209522]
[1734883540640,0.01093894,95466.0,95456.0,0.1013084]
[1734883540880,0.000671,95466.0,95461.0,0.02111491]
[1734883541086,0.000671,95466.0,95462.0,0.1013084]
[1734883541257,0.000671,95466.0,95462.0,0.0953084]
[1734883541465,0.000671,95466.0,95465.0,0.1013084]
[1734883541869,0.01904362,95466.0,95465.0,0.1013084]
[1734883543437,0.01904362,95466.0,95465.0,0.1073084]
[1734883544044,0.10219717,95466.0,95465.0,0.006]
[1734883544603,0.10219717,95466.0,95446.0,0.209542]
[1734883544817,0.01904362,95466.0,95451.0,0.1013084]
[1734883545135,0.209511,95461.0,95459.0,0.02099412]
[1734883545340,0.209511,95461.0,95460.0,0.1013084]
[1734883545888,0.199511,95461.0,95460.0,0.1013084]
[1734883546110,0.01837262,95461.0,95460.0,0.1013084]
[1734883546320,0.01837262,95461.0,95460.0,0.0953084]
[1734883547003,0.01837262,95461.0,95460.0,0.1043084]
[1734883547174,0.01837262,95461.0,95460.0,0.0953084]
[1734883547378,0.01837262,95461.0,95460.0,0.1043084]
[1734883548366,0.10152617,95461.0,95460.0,0.1043084]
[1734883548704,0.01837262,95461.0,95460.0,0.1043084]
[1734883548913,0.10152617,95461.0,95460.0,0.1043084]
[1734883549249,0.28997214,95461.0,95460.0,0.1043084]
[1734883549442,0.36777214,95461.0,95460.0,0.009]
[1734883551328,0.36777214,95461.0,95460.0,0.003]
[1734883552539,0.10152617,95461.0,95460.0,0.1043084]
[1734883553094,0.25152617,95461.0,95460.0,0.1043084]
[1734883553610,0.16837262,95461.0,95460.0,0.1043084]
[1734883553816,0.01837262,95461.0,95460.0,0.1043084]
[1734883555281,0.01837262,95461.0,95460.0,0.104394]
[1734883555683,0.01854382,95461.0,95460.0,0.104394]
[1734883555889,0.01854382,95461.0,95460.0,0.12496382]
[1734883556307,0.01854382,95461.0,95460.0,0.11896382]
[1734883560692,0.01854382,95461.0,95460.0,0.098394]
[1734883560922,0.10169737,95461.0,95460.0,0.098394]
[1734883561635,0.01854382,95461.0,95460.0,0.098394]
[1734883562585,1e-08,95461.0,95460.0,0.092394]
[1734883566291,1e-08,95461.0,95460.0,0.086394]
[1734883571275,1e-08,95461.0,95460.0,0.080394]
[1734883575808,1e-08,95461.0,95460.0,0.207994]
[1734883576162,1e-08,95461.0,95460.0,0.26354803]
[1734883577040,0.00100001,95461.0,95460.0,0.61974757]
[1734883578264,0.00100001,95461.0,95460.0,0.63659402]
[1734883579032,0.01938141,95461.0,95460.0,0.63659402]
[1734883579148,0.000671,95466.0,95465.0,0.2095]
[1734883579352,0.000671,95466.0,95465.0,0.8468084]
[1734883579603,0.23315355,95493.0,95465.0,0.3108084]
[1734883579809,0.1,95521.0,95508.0,0.286006]
[1734883579810,0.08315355,95521.0,95508.0,0.286006]
[1734883580007,0.00162941,95514.0,95509.0,0.209404]
[1734883580160,0.13000306,95516.0,95510.0,0.1013084]
[1734883580360,0.13000306,95516.0,95513.0,0.41879]
[1734883580612,0.10851316,95516.0,95513.0,0.5200984]
[1734883581212,5.435e-05,95516.0,95513.0,0.5140984]
[1734883582586,5.435e-05,95516.0,95513.0,0.5200984]
[1734883583226,5.435e-05,95516.0,95513.0,0.3107034]
[1734883583671,5.435e-05,95516.0,95513.0,0.5200984]
[1734883584136,5.435e-05,95516.0,95513.0,0.3107034]
[1734883584684,0.0832079,95516.0,95513.0,0.1073084]
[1734883586210,0.0832079,95516.0,95513.0,0.1013084]
[1734883586410,0.08315355,95514.0,95513.0,0.1013084]
[1734883586607,0.08315355,95514.0,95513.0,0.006]